[Event "*** Titled Tuesday Blitz"]
[Site "Chess.com"]
[Date "2018.09.04"]
[Round "8"]
[White "menor31"]
[Black "Bauxi435"]
[Result "0-1"]
[WhiteElo "2437"]
[BlackElo "2369"]
[TimeControl "180+2"]
[EndTime "15:23:32 PDT"]
[Termination "Bauxi435 won by resignation"]

1. e4 {[%clk 0:02:51.5]} 1... c5 {[%clk 0:03:00.4]} 2. Nf3 {[%clk 0:02:46.2]}
2... e6 {[%clk 0:03:01.3]} 3. c3 {[%clk 0:02:46.4]} 3... Nf6 {[%clk 0:02:59.1]}
4. e5 {[%clk 0:02:44.2]} 4... Nd5 {[%clk 0:02:58.8]} 5. d4 {[%clk 0:02:44.5]}
5... cxd4 {[%clk 0:02:58.1]} 6. cxd4 {[%clk 0:02:43.9]} 6... Bb4+ {[%clk
0:02:49]} 7. Nbd2 {[%clk 0:02:42.2]} 7... O-O {[%clk 0:02:40]} 8. a3 {[%clk
0:02:40.1]} 8... Be7 {[%clk 0:02:38.1]} 9. Ne4 {[%clk 0:02:39.7]} 9... f5 {[%clk
0:02:35.5]} 10. exf6 {[%clk 0:02:40.4]} 10... Nxf6 {[%clk 0:02:32.9]} 11. Bd3
{[%clk 0:02:41.2]} 11... Nxe4 {[%clk 0:02:20.6]} 12. Bxe4 {[%clk 0:02:34.7]}
12... d5 {[%clk 0:02:21.2]} 13. Bc2 {[%clk 0:02:30.7]} 13... Nc6 {[%clk
0:02:17.6]} 14. O-O {[%clk 0:02:23.8]} 14... Qb6 {[%clk 0:02:14.6]} 15. Qd3
{[%clk 0:02:24.1]} 15... g6 {[%clk 0:02:13.5]} 16. Bh6 {[%clk 0:02:23.9]} 16...
Rxf3 {[%clk 0:02:09.5]} 17. Qxf3 {[%clk 0:02:23.5]} 17... Nxd4 {[%clk
0:02:08.4]} 18. Qd3 {[%clk 0:02:15.7]} 18... Qxb2 {[%clk 0:02:03.1]} 19. Rab1
{[%clk 0:01:56.9]} 19... Qc3 {[%clk 0:02:01.3]} 20. Qxc3 {[%clk 0:01:45.8]}
20... Ne2+ {[%clk 0:02:01.3]} 21. Kh1 {[%clk 0:01:47.7]} 21... Nxc3 {[%clk
0:02:00.8]} 22. Rb3 {[%clk 0:01:44.8]} 22... d4 {[%clk 0:01:54.9]} 23. Bd3
{[%clk 0:01:34.1]} 23... b6 {[%clk 0:01:48.4]} 24. Re1 {[%clk 0:01:28.4]} 24...
Bd7 {[%clk 0:01:45.3]} 25. f3 {[%clk 0:01:19.7]} 25... Kf7 {[%clk 0:01:42.7]}
26. Bf4 {[%clk 0:01:17.6]} 26... Ba4 {[%clk 0:01:35.3]} 27. Rb2 {[%clk
0:01:17.2]} 27... Bxa3 {[%clk 0:01:33.9]} 28. Rf2 {[%clk 0:01:17.4]} 28... b5
{[%clk 0:01:29.6]} 29. Be5 {[%clk 0:01:17.2]} 29... Bc5 {[%clk 0:01:27.9]} 30.
Rb2 {[%clk 0:01:10.1]} 30... a5 {[%clk 0:01:25.1]} 31. f4 {[%clk 0:01:04.5]}
31... Ra7 {[%clk 0:01:07.4]} 32. h4 {[%clk 0:01:03.5]} 32... b4 {[%clk
0:01:04.6]} 33. Bc4 {[%clk 0:01:04]} 33... Bc6 {[%clk 0:01:00.3]} 34. Bxe6+
{[%clk 0:01:03.4]} 34... Kxe6 {[%clk 0:00:51.3]} 35. Bxd4+ {[%clk 0:00:59.5]}
35... Kd5 {[%clk 0:00:48.9]} 36. Bxc5 {[%clk 0:00:57.2]} 36... Kxc5 {[%clk
0:00:49.9]} 37. Re5+ {[%clk 0:00:45.5]} 37... Bd5 {[%clk 0:00:50.8]} 38. Rd2
{[%clk 0:00:43]} 38... a4 {[%clk 0:00:51.2]} 0-1

[Event "*** Titled Tuesday Blitz"]
[Site "Chess.com"]
[Date "2018.09.04"]
[Round "8"]
[White "CrushingKings"]
[Black "Aklanion"]
[Result "1-0"]
[WhiteElo "2118"]
[BlackElo "2138"]
[TimeControl "180+2"]
[EndTime "15:23:38 PDT"]
[Termination "CrushingKings won by resignation"]

1. e4 {[%clk 0:03:01.9]} 1... c5 {[%clk 0:03:00.7]} 2. Nf3 {[%clk 0:03:00.7]}
2... d6 {[%clk 0:03:02.2]} 3. d4 {[%clk 0:03:01.5]} 3... cxd4 {[%clk 0:03:04.1]}
4. c3 {[%clk 0:03:02.5]} 4... dxc3 {[%clk 0:03:00.4]} 5. Nxc3 {[%clk 0:03:03.3]}
5... Nc6 {[%clk 0:02:57.2]} 6. Bc4 {[%clk 0:03:04.7]} 6... e6 {[%clk 0:02:54.1]}
7. O-O {[%clk 0:03:06]} 7... a6 {[%clk 0:02:55.6]} 8. Qe2 {[%clk 0:03:07.4]}
8... Be7 {[%clk 0:02:50.3]} 9. Rd1 {[%clk 0:03:08.5]} 9... e5 {[%clk 0:02:28.6]}
10. Ng5 {[%clk 0:02:23.2]} 10... Bxg5 {[%clk 0:02:16.1]} 11. Qh5 {[%clk
0:02:24.4]} 11... g6 {[%clk 0:01:41.2]} 12. Qxg5 {[%clk 0:02:24.6]} 12... Qxg5
{[%clk 0:01:42.2]} 13. Bxg5 {[%clk 0:02:25.7]} 13... h6 {[%clk 0:01:13.6]} 14.
Be3 {[%clk 0:02:25.9]} 14... b5 {[%clk 0:00:52.6]} 15. Bb3 {[%clk 0:01:38]}
15... Na5 {[%clk 0:00:31.3]} 16. Rxd6 {[%clk 0:01:37.2]} 16... Nxb3 {[%clk
0:00:32.3]} 17. axb3 {[%clk 0:01:38.7]} 17... Bb7 {[%clk 0:00:32.8]} 18. Rb6
{[%clk 0:01:38]} 18... O-O-O {[%clk 0:00:22.5]} 19. Nd5 {[%clk 0:01:20.3]} 19...
Rd7 {[%clk 0:00:20.8]} 20. Rbxa6 {[%clk 0:01:00.2]} 20... Bxa6 {[%clk
0:00:14.7]} 21. Nb6+ {[%clk 0:01:00.4]} 21... Kc7 {[%clk 0:00:08.4]} 22. Nxd7
{[%clk 0:01:01.6]} 22... Bb7 {[%clk 0:00:09.1]} 23. Nc5 {[%clk 0:00:58.4]} 23...
Ne7 {[%clk 0:00:07.6]} 24. Ra7 {[%clk 0:00:59.4]} 24... Rb8 {[%clk 0:00:08.9]}
25. Na6+ {[%clk 0:01:00.4]} 25... Kc8 {[%clk 0:00:08.3]} 26. Nxb8 {[%clk
0:01:01.6]} 26... Kxb8 {[%clk 0:00:10.2]} 27. Ra5 {[%clk 0:01:00]} 27... Bc6
{[%clk 0:00:10.6]} 28. Bc5 {[%clk 0:00:59.7]} 28... Nc8 {[%clk 0:00:10.5]} 29.
f3 {[%clk 0:01:00.9]} 29... f5 {[%clk 0:00:11.3]} 30. Ra1 {[%clk 0:01:00]} 30...
Kc7 {[%clk 0:00:10.8]} 31. exf5 {[%clk 0:00:56.7]} 31... gxf5 {[%clk 0:00:12]}
32. Re1 {[%clk 0:00:58.3]} 32... e4 {[%clk 0:00:13.5]} 33. fxe4 {[%clk
0:00:59.3]} 33... fxe4 {[%clk 0:00:15.4]} 34. Kf2 {[%clk 0:00:58.8]} 34... Bd5
{[%clk 0:00:16.8]} 35. Re3 {[%clk 0:00:53.2]} 35... Kc6 {[%clk 0:00:16.6]} 36.
b4 {[%clk 0:00:54.5]} 36... Nd6 {[%clk 0:00:15.1]} 37. Bxd6 {[%clk 0:00:53.8]}
37... Kxd6 {[%clk 0:00:17]} 38. Rh3 {[%clk 0:00:54.8]} 38... Ke5 {[%clk
0:00:17.3]} 39. Ke3 {[%clk 0:00:56.1]} 39... h5 {[%clk 0:00:17.3]} 40. Rxh5+
{[%clk 0:00:57.1]} 40... Kd6 {[%clk 0:00:19.2]} 1-0

[Event "*** Titled Tuesday Blitz"]
[Site "Chess.com"]
[Date "2018.09.04"]
[Round "8"]
[White "Sethu0025"]
[Black "Divertissement"]
[Result "0-1"]
[WhiteElo "2670"]
[BlackElo "2555"]
[TimeControl "180+2"]
[EndTime "15:23:40 PDT"]
[Termination "Divertissement won by resignation"]

1. e4 {[%clk 0:03:01.9]} 1... c5 {[%clk 0:03:00.3]} 2. Nc3 {[%clk 0:03:00.5]}
2... a6 {[%clk 0:02:55.7]} 3. g3 {[%clk 0:02:57.9]} 3... b5 {[%clk 0:02:57]} 4.
Bg2 {[%clk 0:02:58.8]} 4... Bb7 {[%clk 0:02:58.5]} 5. d3 {[%clk 0:02:58.2]} 5...
h5 {[%clk 0:02:57.5]} 6. Nf3 {[%clk 0:02:55.6]} 6... e6 {[%clk 0:02:57.1]} 7.
O-O {[%clk 0:02:52.8]} 7... Be7 {[%clk 0:02:56.5]} 8. h4 {[%clk 0:02:50.2]} 8...
Nf6 {[%clk 0:02:55.1]} 9. Bg5 {[%clk 0:02:37]} 9... d6 {[%clk 0:02:54.1]} 10. d4
{[%clk 0:02:34.5]} 10... Nxe4 {[%clk 0:02:45.7]} 11. Nxe4 {[%clk 0:02:25.9]}
11... Bxe4 {[%clk 0:02:45.7]} 12. dxc5 {[%clk 0:02:24.2]} 12... d5 {[%clk
0:02:16.1]} 13. Bxe7 {[%clk 0:02:10.3]} 13... Qxe7 {[%clk 0:02:15.1]} 14. b4
{[%clk 0:02:11.2]} 14... Nc6 {[%clk 0:02:13.2]} 15. c3 {[%clk 0:02:11.8]} 15...
Bxf3 {[%clk 0:01:56.8]} 16. Bxf3 {[%clk 0:02:09.7]} 16... Qf6 {[%clk 0:01:43]}
17. Re1 {[%clk 0:01:58.6]} 17... Kf8 {[%clk 0:01:34.9]} 18. Re3 {[%clk
0:01:53.9]} 18... g5 {[%clk 0:01:30.3]} 19. Bxh5 {[%clk 0:01:50.8]} 19... gxh4
{[%clk 0:01:16.3]} 20. Bxf7 {[%clk 0:01:27.5]} 20... Ne5 {[%clk 0:00:42.4]} 21.
Bxe6 {[%clk 0:01:18.6]} 21... hxg3 {[%clk 0:00:40.8]} 22. fxg3 {[%clk
0:01:13.6]} 22... Qxe6 {[%clk 0:00:14]} 23. Qd4 {[%clk 0:01:07.8]} 23... Re8
{[%clk 0:00:15.4]} 24. Rf1+ {[%clk 0:00:49]} 24... Kg8 {[%clk 0:00:14.7]} 25. c6
{[%clk 0:00:32.7]} 25... Rh7 {[%clk 0:00:14.1]} 26. Rfe1 {[%clk 0:00:20.2]}
26... Nf3+ {[%clk 0:00:13.9]} 27. Rxf3 {[%clk 0:00:15.5]} 27... Qxe1+ {[%clk
0:00:12.5]} 28. Rf1 {[%clk 0:00:16.4]} 28... Rh1+ {[%clk 0:00:13.6]} 29. Kxh1
{[%clk 0:00:15.8]} 29... Qxf1+ {[%clk 0:00:15.2]} 30. Kh2 {[%clk 0:00:15.5]}
30... Re2+ {[%clk 0:00:16.2]} 0-1

[Event "*** Titled Tuesday Blitz"]
[Site "Chess.com"]
[Date "2018.09.04"]
[Round "8"]
[White "NikolaGry"]
[Black "tony15051987"]
[Result "1-0"]
[WhiteElo "2611"]
[BlackElo "2459"]
[TimeControl "180+2"]
[EndTime "15:23:40 PDT"]
[Termination "NikolaGry won by resignation"]

1. b3 {[%clk 0:03:01.9]} 1... e5 {[%clk 0:02:57.8]} 2. Bb2 {[%clk 0:03:02.8]}
2... Nc6 {[%clk 0:02:58.7]} 3. c4 {[%clk 0:03:03.5]} 3... Nf6 {[%clk 0:02:59]}
4. e3 {[%clk 0:03:03.4]} 4... Be7 {[%clk 0:02:55.6]} 5. Nf3 {[%clk 0:03:03.2]}
5... d6 {[%clk 0:02:55.4]} 6. d4 {[%clk 0:03:03.5]} 6... exd4 {[%clk 0:02:54.4]}
7. Nxd4 {[%clk 0:03:03]} 7... O-O {[%clk 0:02:53.2]} 8. Be2 {[%clk 0:03:03.5]}
8... Ne5 {[%clk 0:02:34.3]} 9. O-O {[%clk 0:03:02.8]} 9... c6 {[%clk 0:02:34.6]}
10. Nc3 {[%clk 0:03:01.6]} 10... Re8 {[%clk 0:02:35]} 11. Qc2 {[%clk 0:03:01.2]}
11... Bf8 {[%clk 0:02:35.4]} 12. Rad1 {[%clk 0:02:55.6]} 12... a5 {[%clk
0:02:36.2]} 13. Rd2 {[%clk 0:02:52.9]} 13... Qc7 {[%clk 0:02:34.3]} 14. Rfd1
{[%clk 0:02:52]} 14... g6 {[%clk 0:02:27.4]} 15. Qc1 {[%clk 0:02:33.8]} 15...
Bg4 {[%clk 0:02:17.8]} 16. h3 {[%clk 0:02:20]} 16... Bxe2 {[%clk 0:02:12.5]} 17.
Ndxe2 {[%clk 0:02:20.5]} 17... Ned7 {[%clk 0:01:30.4]} 18. Ng3 {[%clk
0:02:11.4]} 18... Re6 {[%clk 0:01:26.7]} 19. Qc2 {[%clk 0:02:08.1]} 19... Rae8
{[%clk 0:01:26.8]} 20. Nce2 {[%clk 0:02:07.2]} 20... Ne4 {[%clk 0:00:20.2]} 21.
Nxe4 {[%clk 0:02:04.8]} 21... Rxe4 {[%clk 0:00:21.1]} 22. Qc3 {[%clk 0:02:00.9]}
22... f6 {[%clk 0:00:22.1]} 23. Qc2 {[%clk 0:01:51]} 23... R4e6 {[%clk
0:00:14.8]} 24. Rd4 {[%clk 0:01:45.6]} 24... Nc5 {[%clk 0:00:14.4]} 25. Nf4
{[%clk 0:01:44.9]} 25... Re4 {[%clk 0:00:14.7]} 26. R4d2 {[%clk 0:01:35.6]}
26... Qf7 {[%clk 0:00:13]} 27. Bd4 {[%clk 0:01:32.4]} 27... g5 {[%clk
0:00:13.6]} 28. Ne2 {[%clk 0:01:30.7]} 28... Nd7 {[%clk 0:00:14]} 29. Ng3 {[%clk
0:01:30.5]} 29... R4e6 {[%clk 0:00:15]} 30. Nf5 {[%clk 0:01:29.8]} 30... Qg6
{[%clk 0:00:15.5]} 31. f3 {[%clk 0:01:20.7]} 31... Kf7 {[%clk 0:00:10.4]} 32. e4
{[%clk 0:01:20.9]} 32... h5 {[%clk 0:00:10.7]} 33. g4 {[%clk 0:01:16.2]} 33...
hxg4 {[%clk 0:00:11]} 34. hxg4 {[%clk 0:01:17.2]} 34... Be7 {[%clk 0:00:11.5]}
35. Rh2 {[%clk 0:01:14]} 35... Bd8 {[%clk 0:00:06.6]} 36. Rh6 {[%clk 0:01:10.9]}
36... Qg8 {[%clk 0:00:05.9]} 37. Qh2 {[%clk 0:01:09.3]} 37... Ne5 {[%clk
0:00:04.3]} 38. Rh7+ {[%clk 0:00:57.3]} 1-0

[Event "*** Titled Tuesday Blitz"]
[Site "Chess.com"]
[Date "2018.09.04"]
[Round "8"]
[White "ramses135"]
[Black "Aryangholami"]
[Result "1-0"]
[WhiteElo "2545"]
[BlackElo "2703"]
[TimeControl "180+2"]
[EndTime "15:23:53 PDT"]
[Termination "ramses135 won by resignation"]

1. e4 {[%clk 0:03:01.9]} 1... Nf6 {[%clk 0:03:01.5]} 2. e5 {[%clk 0:03:02.6]}
2... Nd5 {[%clk 0:03:03]} 3. d4 {[%clk 0:03:03.9]} 3... d6 {[%clk 0:03:03.5]} 4.
c4 {[%clk 0:03:05.1]} 4... Nb6 {[%clk 0:03:04.8]} 5. exd6 {[%clk 0:03:06.1]}
5... cxd6 {[%clk 0:03:05]} 6. Nc3 {[%clk 0:03:05.2]} 6... g6 {[%clk 0:03:06.4]}
7. a4 {[%clk 0:03:05.3]} 7... Bg7 {[%clk 0:03:06.6]} 8. a5 {[%clk 0:03:06]} 8...
N6d7 {[%clk 0:03:07.7]} 9. Nf3 {[%clk 0:03:07.5]} 9... O-O {[%clk 0:03:08.3]}
10. Be3 {[%clk 0:03:06.8]} 10... Nc6 {[%clk 0:03:07.3]} 11. Ra3 {[%clk
0:03:06.5]} 11... Nxa5 {[%clk 0:03:06.2]} 12. d5 {[%clk 0:03:05.5]} 12... b6
{[%clk 0:02:55.7]} 13. b4 {[%clk 0:03:05.6]} 13... Nb7 {[%clk 0:02:55.7]} 14.
Nd4 {[%clk 0:03:01.8]} 14... Ne5 {[%clk 0:02:54.8]} 15. Be2 {[%clk 0:02:51.5]}
15... a5 {[%clk 0:02:50.4]} 16. f4 {[%clk 0:02:46.2]} 16... Nd7 {[%clk
0:02:44.7]} 17. Nc6 {[%clk 0:02:33.4]} 17... Bxc3+ {[%clk 0:02:43.7]} 18. Rxc3
{[%clk 0:02:34.2]} 18... Qe8 {[%clk 0:02:44.1]} 19. Ra3 {[%clk 0:02:13.2]} 19...
e6 {[%clk 0:02:30.1]} 20. O-O {[%clk 0:01:48.2]} 20... exd5 {[%clk 0:02:29.6]}
21. cxd5 {[%clk 0:01:50.1]} 21... axb4 {[%clk 0:02:28.3]} 22. Rxa8 {[%clk
0:01:46.1]} 22... Qxe3+ {[%clk 0:02:28.2]} 23. Kh1 {[%clk 0:01:48]} 23... Nbc5
{[%clk 0:02:24.3]} 24. Nxb4 {[%clk 0:01:40.9]} 24... Ne4 {[%clk 0:02:20.4]} 25.
Qe1 {[%clk 0:01:40]} 25... Ndc5 {[%clk 0:02:18.6]} 26. Bf3 {[%clk 0:01:36.6]}
26... Qd4 {[%clk 0:02:14.9]} 27. Nc6 {[%clk 0:01:32.4]} 27... Qf6 {[%clk
0:02:05.8]} 28. Bxe4 {[%clk 0:01:31.5]} 28... Re8 {[%clk 0:02:06]} 29. Qb1
{[%clk 0:00:57]} 29... Nxe4 {[%clk 0:02:03]} 30. Rxc8 {[%clk 0:00:57.7]} 30...
Nf2+ {[%clk 0:02:00.1]} 31. Rxf2 {[%clk 0:00:56.7]} 31... Rxc8 {[%clk 0:02:02]}
32. h3 {[%clk 0:00:53.3]} 32... Re8 {[%clk 0:02:02.2]} 33. Kh2 {[%clk
0:00:43.3]} 33... Qh4 {[%clk 0:02:01.3]} 34. Rf3 {[%clk 0:00:41.8]} 34... Re2
{[%clk 0:01:58.9]} 35. Qxb6 {[%clk 0:00:37.8]} 35... Qe1 {[%clk 0:01:58.2]} 36.
Qb8+ {[%clk 0:00:29.5]} 36... Kg7 {[%clk 0:01:57.8]} 37. Qxd6 {[%clk 0:00:29.7]}
37... Qd1 {[%clk 0:01:56.2]} 38. Qc5 {[%clk 0:00:23.1]} 38... Rd2 {[%clk
0:01:56.3]} 39. Qc3+ {[%clk 0:00:21]} 39... Kg8 {[%clk 0:01:54.6]} 40. Ne5
{[%clk 0:00:20]} 40... Qe2 {[%clk 0:01:52.2]} 41. Rg3 {[%clk 0:00:18.3]} 41...
Rd1 {[%clk 0:01:51]} 42. Ng4 {[%clk 0:00:17.4]} 42... Qf1 {[%clk 0:01:30]} 43.
Re3 {[%clk 0:00:13.1]} 43... Qg1+ {[%clk 0:01:28.9]} 44. Kg3 {[%clk 0:00:13.8]}
44... h5 {[%clk 0:01:25.2]} 45. Re8+ {[%clk 0:00:13.3]} 1-0

[Event "*** Titled Tuesday Blitz"]
[Site "Chess.com"]
[Date "2018.09.04"]
[Round "8"]
[White "Nakachuk"]
[Black "dimke2802"]
[Result "0-1"]
[WhiteElo "2663"]
[BlackElo "2448"]
[TimeControl "180+2"]
[EndTime "15:23:53 PDT"]
[Termination "dimke2802 won by checkmate"]

1. d4 {[%clk 0:03:01.9]} 1... Nf6 {[%clk 0:03:00]} 2. Bf4 {[%clk 0:03:01.3]}
2... d6 {[%clk 0:03:00.5]} 3. e3 {[%clk 0:02:51.5]} 3... g6 {[%clk 0:02:59.4]}
4. Nf3 {[%clk 0:02:51.7]} 4... Bg7 {[%clk 0:03:00.4]} 5. Be2 {[%clk 0:02:53.2]}
5... O-O {[%clk 0:03:01.9]} 6. O-O {[%clk 0:02:54.6]} 6... b6 {[%clk 0:03:03.2]}
7. a4 {[%clk 0:02:54.7]} 7... a6 {[%clk 0:03:03.6]} 8. h3 {[%clk 0:02:54.6]}
8... Bb7 {[%clk 0:03:04]} 9. c3 {[%clk 0:02:56.1]} 9... Nbd7 {[%clk 0:03:03.3]}
10. Nbd2 {[%clk 0:02:57.3]} 10... c5 {[%clk 0:03:03.6]} 11. Bh2 {[%clk
0:02:58.5]} 11... Ne4 {[%clk 0:02:51.2]} 12. Nxe4 {[%clk 0:02:56.3]} 12... Bxe4
{[%clk 0:02:53.1]} 13. Nd2 {[%clk 0:02:58.2]} 13... Bb7 {[%clk 0:02:54.1]} 14.
Bf3 {[%clk 0:02:59.6]} 14... Qc8 {[%clk 0:02:55.5]} 15. Re1 {[%clk 0:02:57.5]}
15... Rb8 {[%clk 0:02:43.5]} 16. Qe2 {[%clk 0:02:46.8]} 16... Bxf3 {[%clk
0:02:41.3]} 17. Nxf3 {[%clk 0:02:48.7]} 17... b5 {[%clk 0:02:35.1]} 18. e4
{[%clk 0:02:49]} 18... e5 {[%clk 0:02:27.2]} 19. d5 {[%clk 0:02:42.2]} 19... h6
{[%clk 0:02:26.5]} 20. axb5 {[%clk 0:02:41.6]} 20... axb5 {[%clk 0:02:27.1]} 21.
Ra7 {[%clk 0:02:41.3]} 21... Rb7 {[%clk 0:02:24.5]} 22. Rea1 {[%clk 0:02:41.2]}
22... c4 {[%clk 0:02:24.5]} 23. R7a6 {[%clk 0:02:33]} 23... Qb8 {[%clk
0:02:20.5]} 24. Nd2 {[%clk 0:02:03]} 24... Nc5 {[%clk 0:02:19.7]} 25. R6a5
{[%clk 0:02:04.3]} 25... Nd3 {[%clk 0:02:08.7]} 26. b4 {[%clk 0:02:00.7]} 26...
f5 {[%clk 0:02:04.5]} 27. Kh1 {[%clk 0:01:49.7]} 27... h5 {[%clk 0:01:50.2]} 28.
f3 {[%clk 0:01:44.2]} 28... Bh6 {[%clk 0:01:48.9]} 29. exf5 {[%clk 0:01:42.5]}
29... gxf5 {[%clk 0:01:48.2]} 30. Nf1 {[%clk 0:01:29.6]} 30... Rg7 {[%clk
0:01:39.1]} 31. Qa2 {[%clk 0:01:05.7]} 31... Qd8 {[%clk 0:01:13.2]} 32. Ng3
{[%clk 0:00:47.6]} 32... Qg5 {[%clk 0:01:02]} 33. Ra7 {[%clk 0:00:38.3]} 33...
Rff7 {[%clk 0:00:44.9]} 34. Rxf7 {[%clk 0:00:37.1]} 34... Kxf7 {[%clk
0:00:45.8]} 35. Qa7+ {[%clk 0:00:30]} 35... Kg8 {[%clk 0:00:41.6]} 36. Qb6
{[%clk 0:00:26.2]} 36... h4 {[%clk 0:00:33]} 37. Ra8+ {[%clk 0:00:25.4]} 37...
Kh7 {[%clk 0:00:33.4]} 38. Qb8 {[%clk 0:00:22]} 38... Qc1+ {[%clk 0:00:31.3]}
39. Bg1 {[%clk 0:00:21.4]} 39... Nf2+ {[%clk 0:00:32.4]} 40. Kh2 {[%clk
0:00:23.3]} 40... hxg3# {[%clk 0:00:33.8]} 0-1

[Event "*** Titled Tuesday Blitz"]
[Site "Chess.com"]
[Date "2018.09.04"]
[Round "8"]
[White "Saitama_Hero"]
[Black "ShadyH9"]
[Result "1-0"]
[WhiteElo "2200"]
[BlackElo "2171"]
[TimeControl "180+2"]
[EndTime "15:24:17 PDT"]
[Termination "Saitama_Hero won on time"]

1. d4 {[%clk 0:03:01.9]} 1... Nf6 {[%clk 0:02:58.7]} 2. Nf3 {[%clk 0:03:03.2]}
2... g6 {[%clk 0:02:58.7]} 3. g3 {[%clk 0:03:04.5]} 3... Bg7 {[%clk 0:02:59.6]}
4. Bg2 {[%clk 0:03:06.2]} 4... O-O {[%clk 0:03:00.6]} 5. O-O {[%clk 0:03:08.1]}
5... d6 {[%clk 0:03:01.7]} 6. b3 {[%clk 0:03:08.2]} 6... a5 {[%clk 0:02:55.7]}
7. Bb2 {[%clk 0:03:09.1]} 7... a4 {[%clk 0:02:51.5]} 8. c4 {[%clk 0:03:09.2]}
8... Nc6 {[%clk 0:02:36.7]} 9. bxa4 {[%clk 0:02:57.8]} 9... e5 {[%clk
0:02:33.9]} 10. dxe5 {[%clk 0:02:56.1]} 10... Ng4 {[%clk 0:02:34.3]} 11. Nbd2
{[%clk 0:02:53.7]} 11... Ncxe5 {[%clk 0:02:31.5]} 12. Nxe5 {[%clk 0:02:49.7]}
12... Nxe5 {[%clk 0:02:31.5]} 13. Qc2 {[%clk 0:02:48.4]} 13... Qd7 {[%clk
0:01:51.7]} 14. f4 {[%clk 0:02:38.9]} 14... Ng4 {[%clk 0:01:45.5]} 15. Bxg7
{[%clk 0:02:36.8]} 15... Kxg7 {[%clk 0:01:47.4]} 16. Qc3+ {[%clk 0:02:32.4]}
16... f6 {[%clk 0:01:47.6]} 17. h3 {[%clk 0:02:25.4]} 17... Nh6 {[%clk
0:01:48.3]} 18. e4 {[%clk 0:02:25]} 18... Qxa4 {[%clk 0:01:40.8]} 19. e5 {[%clk
0:01:55.5]} 19... Qa5 {[%clk 0:01:30.6]} 20. exf6+ {[%clk 0:01:50.6]} 20... Rxf6
{[%clk 0:01:29.8]} 21. Qb2 {[%clk 0:01:51.9]} 21... Qb6+ {[%clk 0:01:14]} 22.
Qxb6 {[%clk 0:01:39.4]} 22... cxb6 {[%clk 0:01:15.6]} 23. g4 {[%clk 0:01:41]}
23... Nf7 {[%clk 0:01:04.9]} 24. Ne4 {[%clk 0:01:23.8]} 24... Re6 {[%clk
0:01:04.7]} 25. Nc3 {[%clk 0:01:22.2]} 25... Ra6 {[%clk 0:00:47.4]} 26. Nd5
{[%clk 0:01:21.4]} 26... Re2 {[%clk 0:00:46.1]} 27. Rf2 {[%clk 0:01:19]} 27...
Rxf2 {[%clk 0:00:44.3]} 28. Kxf2 {[%clk 0:01:20.9]} 28... Nd8 {[%clk 0:00:17.4]}
29. g5 {[%clk 0:01:09.6]} 29... Be6 {[%clk 0:00:17.9]} 30. Nf6 {[%clk
0:01:05.5]} 30... Bxc4 {[%clk 0:00:15.4]} 31. Ne8+ {[%clk 0:01:05.2]} 31... Kf8
{[%clk 0:00:16]} 32. Nxd6 {[%clk 0:01:07.1]} 32... Rxa2+ {[%clk 0:00:16.8]} 33.
Rxa2 {[%clk 0:01:07.4]} 33... Bxa2 {[%clk 0:00:18.7]} 34. Ke3 {[%clk 0:01:05.9]}
34... Ke7 {[%clk 0:00:17.8]} 35. Nc8+ {[%clk 0:01:03.5]} 35... Kd7 {[%clk
0:00:09.1]} 36. Nxb6+ {[%clk 0:01:05.4]} 36... Kd6 {[%clk 0:00:08.9]} 37. Na4
{[%clk 0:00:59.5]} 37... b5 {[%clk 0:00:04.9]} 38. Nc3 {[%clk 0:01:00.1]} 38...
Bc4 {[%clk 0:00:05.8]} 39. Ne4+ {[%clk 0:00:58.8]} 39... Ke6 {[%clk 0:00:03.4]}
40. Nf6 {[%clk 0:00:59.1]} 1-0

[Event "*** Titled Tuesday Blitz"]
[Site "Chess.com"]
[Date "2018.09.04"]
[Round "8"]
[White "sergiochess83"]
[Black "MrVezunchik"]
[Result "1-0"]
[WhiteElo "2759"]
[BlackElo "2826"]
[TimeControl "180+2"]
[EndTime "15:24:18 PDT"]
[Termination "sergiochess83 won on time"]

1. e4 {[%clk 0:03:01.9]} 1... d5 {[%clk 0:02:50.9]} 2. exd5 {[%clk 0:03:00.1]}
2... Qxd5 {[%clk 0:02:52.8]} 3. Nc3 {[%clk 0:03:00.3]} 3... Qd6 {[%clk
0:02:53.6]} 4. d4 {[%clk 0:03:00.5]} 4... Nf6 {[%clk 0:02:54.8]} 5. Nf3 {[%clk
0:03:00.6]} 5... g6 {[%clk 0:02:56.1]} 6. Nb5 {[%clk 0:02:57.4]} 6... Qd8 {[%clk
0:02:56.4]} 7. c4 {[%clk 0:02:58.5]} 7... a6 {[%clk 0:02:57.6]} 8. Nc3 {[%clk
0:02:59.1]} 8... Bg7 {[%clk 0:02:59.1]} 9. Be2 {[%clk 0:02:59.6]} 9... O-O
{[%clk 0:03:01]} 10. O-O {[%clk 0:03:00.1]} 10... e6 {[%clk 0:03:01.4]} 11. Bf4
{[%clk 0:02:55.2]} 11... Nc6 {[%clk 0:03:00.4]} 12. Qd2 {[%clk 0:02:54.4]} 12...
Re8 {[%clk 0:02:57.9]} 13. Rad1 {[%clk 0:02:54.6]} 13... Ne7 {[%clk 0:02:48.3]}
14. h3 {[%clk 0:02:51.2]} 14... Nf5 {[%clk 0:02:43.1]} 15. Rfe1 {[%clk
0:02:46.1]} 15... b6 {[%clk 0:02:40.4]} 16. g4 {[%clk 0:02:34]} 16... Ne7 {[%clk
0:02:33.7]} 17. Bh6 {[%clk 0:02:26.1]} 17... Bb7 {[%clk 0:02:31.2]} 18. Qf4
{[%clk 0:02:17.6]} 18... b5 {[%clk 0:02:12.5]} 19. Bxg7 {[%clk 0:02:02.1]} 19...
Kxg7 {[%clk 0:02:12.2]} 20. Ne5 {[%clk 0:02:03.6]} 20... Rf8 {[%clk 0:02:05.3]}
21. d5 {[%clk 0:01:52.7]} 21... exd5 {[%clk 0:01:59.7]} 22. g5 {[%clk
0:01:53.6]} 22... Nfg8 {[%clk 0:01:44.2]} 23. cxd5 {[%clk 0:01:38.7]} 23... f6
{[%clk 0:01:04.1]} 24. Ng4 {[%clk 0:01:38.7]} 24... Qd6 {[%clk 0:00:47.8]} 25.
Qd2 {[%clk 0:01:24.3]} 25... Qb6 {[%clk 0:00:13.5]} 26. Bf3 {[%clk 0:01:16.2]}
26... fxg5 {[%clk 0:00:13.5]} 27. Re6 {[%clk 0:01:06.4]} 27... Qa7 {[%clk
0:00:12.9]} 28. Qe2 {[%clk 0:00:56.4]} 28... Rxf3 {[%clk 0:00:06.3]} 29. Qxf3
{[%clk 0:00:51.9]} 29... Nf5 {[%clk 0:00:04.7]} 30. Qe4 {[%clk 0:00:45.9]} 30...
h5 {[%clk 0:00:04.6]} 31. Qe5+ {[%clk 0:00:41.5]} 31... Kf7 {[%clk 0:00:03.5]}
32. Qxc7+ {[%clk 0:00:31.1]} 32... Kf8 {[%clk 0:00:02.3]} 33. Ne5 {[%clk
0:00:29.5]} 33... Nge7 {[%clk 0:00:02.2]} 34. d6 {[%clk 0:00:27.4]} 1-0